[Event "Titled Tuesday Blitz November 15 Early 2022"]
[White "Kosteniuk, Alexandra"]
[Black "Sanchez Enriquez, Oscar Gerardo"]
[WhiteFideId "4128125"]
[BlackFideId "5106311"]
[WhiteElo "2469"]
[BlackElo "2375"]
[Result "1-0"]
[Round "11"]
[TimeControl "180+1"]
[Date "2022.11.16"]
[WhiteClock "0:00:06"]
[BlackClock "0:00:15"]

1. e4 {[%clk 0:03:00]}  d6 {[%clk 0:03:00]} 2. d4 {[%clk 0:03:00]}  Nf6 {[%clk 0:03:01]} 3. Nc3 {[%clk 0:03:01]}  g6 {[%clk 0:03:01]} 4. Be3 {[%clk 0:03:01]}  c6 {[%clk 0:03:01]} 5. Nf3 {[%clk 0:03:00]}  Qa5 {[%clk 0:03:00]} 6. Qd2 {[%clk 0:02:59]}  Nbd7 {[%clk 0:03:00]} 7. Bd3 {[%clk 0:02:54]}  Bg7 {[%clk 0:03:00]} 8. Bh6 {[%clk 0:02:51]}  Bxh6 {[%clk 0:02:05]} 9. Qxh6 {[%clk 0:02:49]}  e5 {[%clk 0:02:06]} 10. dxe5 {[%clk 0:02:40]}  dxe5 {[%clk 0:02:07]} 11. O-O {[%clk 0:02:32]}  Qc5 {[%clk 0:02:01]} 12. Rad1 {[%clk 0:02:27]}  b5 {[%clk 0:02:01]} 13. Ne2 {[%clk 0:02:20]}  Qf8 {[%clk 0:01:59]} 14. Qd2 {[%clk 0:02:16]}  Qe7 {[%clk 0:01:58]} 15. Ng3 {[%clk 0:02:13]}  h6 {[%clk 0:01:53]} 16. a4 {[%clk 0:02:09]}  a6 {[%clk 0:01:52]} 17. Ra1 {[%clk 0:02:05]}  Bb7 {[%clk 0:01:24]} 18. axb5 {[%clk 0:02:05]}  cxb5 {[%clk 0:01:24]} 19. Rfe1 {[%clk 0:01:56]}  Nc5 {[%clk 0:01:21]} 20. Qc3 {[%clk 0:01:50]}  Nfd7 {[%clk 0:01:17]} 21. Bf1 {[%clk 0:01:45]}  O-O {[%clk 0:01:17]} 22. Qe3 {[%clk 0:01:43]}  Kg7 {[%clk 0:01:16]} 23. c4 {[%clk 0:01:31]}  b4 {[%clk 0:01:15]} 24. Ra5 {[%clk 0:01:29]}  Rfc8 {[%clk 0:01:13]} 25. Rd1 {[%clk 0:01:16]}  Rc6 {[%clk 0:01:10]} 26. h3 {[%clk 0:01:15]}  Re8 {[%clk 0:01:06]} 27. Rd5 {[%clk 0:01:14]}  Rc7 {[%clk 0:01:00]} 28. Raxc5 {[%clk 0:01:03]}  Nxc5 {[%clk 0:00:53]} 29. Rxe5 {[%clk 0:01:04]}  Qf8 {[%clk 0:00:51]} 30. Qd4 {[%clk 0:00:57]}  Kh7 {[%clk 0:00:45]} 31. Rxe8 {[%clk 0:00:36]}  Qxe8 {[%clk 0:00:45]} 32. Qd2 {[%clk 0:00:27]}  a5 {[%clk 0:00:44]} 33. Qf4 {[%clk 0:00:25]}  Ne6 {[%clk 0:00:40]} 34. Qe5 {[%clk 0:00:22]}  Rc5 {[%clk 0:00:40]} 35. Qf6 {[%clk 0:00:22]}  Rc7 {[%clk 0:00:37]} 36. h4 {[%clk 0:00:22]}  Qe7 {[%clk 0:00:37]} 37. Qe5 {[%clk 0:00:22]}  Nc5 {[%clk 0:00:37]} 38. Qf4 {[%clk 0:00:17]}  Ne6 {[%clk 0:00:37]} 39. Qe3 {[%clk 0:00:17]}  Qc5 {[%clk 0:00:36]} 40. Qd2 {[%clk 0:00:14]}  h5 {[%clk 0:00:30]} 41. b3 {[%clk 0:00:08]}  Rc8 {[%clk 0:00:30]} 42. Qb2 {[%clk 0:00:08]}  Qe7 {[%clk 0:00:28]} 43. Qe5 {[%clk 0:00:08]}  Rc5 {[%clk 0:00:27]} 44. Qa1 {[%clk 0:00:08]}  Kg8 {[%clk 0:00:26]} 45. Qb2 {[%clk 0:00:07]}  Qd6 {[%clk 0:00:25]} 46. Qf6 {[%clk 0:00:07]}  Qd8 {[%clk 0:00:24]} 47. Qb2 {[%clk 0:00:06]}  Qa8 {[%clk 0:00:20]} 48. Qf6 {[%clk 0:00:06]}  Bxe4 {[%clk 0:00:19]} 49. Ne5 {[%clk 0:00:05]}  Rc7 {[%clk 0:00:15]} 50. f3 {[%clk 0:00:04]}  Bb7 {[%clk 0:00:14]} 51. Nxg6 {[%clk 0:00:04]}  fxg6 {[%clk 0:00:14]} 52. Qxe6+ {[%clk 0:00:04]}  Kg7 {[%clk 0:00:15]} 53. Qe5+ {[%clk 0:00:05]}  Kh6 {[%clk 0:00:15]} 54. Qxc7 {[%clk 0:00:06]}  a4 {[%clk 0:00:16]} 55. Qf4+ {[%clk 0:00:06]}  Kh7 {[%clk 0:00:15]} 56. bxa4 {[%clk 0:00:06]}  Qxa4 {[%clk 0:00:15]} 57. Qc7+ {[%clk 0:00:06]}  Kh6 {[%clk 0:00:15]} 58. Qxb7 {[%clk 0:00:07]}  b3 {[%clk 0:00:16]} 59. Ne4 {[%clk 0:00:05]}  Qe8 {[%clk 0:00:14]} 60. Ng5 {[%clk 0:00:05]}  Qh8 {[%clk 0:00:14]} 61. Qxb3 {[%clk 0:00:04]}  Qd4+ {[%clk 0:00:13]} 62. Kh2 {[%clk 0:00:04]}  Qxh4+ {[%clk 0:00:14]} 63. Nh3 {[%clk 0:00:05]}  Qd8 {[%clk 0:00:14]} 64. Qe3+ {[%clk 0:00:05]}  Kg7 {[%clk 0:00:14]} 65. Qg5 {[%clk 0:00:05]}  Qc7+ {[%clk 0:00:15]} 66. Qg3 {[%clk 0:00:06]}  Qe7 {[%clk 0:00:15]} 67. Nf4 {[%clk 0:00:06]}  Kh6 {[%clk 0:00:15]} 68. Qxg6# {[%clk 0:00:06]} 1-0


[Site "https://www.chess.com"]

[Event "Titled Tuesday Blitz November 15 Early 2022"]
[White "Lauridsen, Jesper Morch"]
[Black "Kostiukov, Alexandr"]
[WhiteFideId "1401890"]
[BlackFideId "14108100"]
[WhiteElo "2229"]
[BlackElo "2202"]
[Result "0-1"]
[Round "11"]
[TimeControl "180+1"]
[Date "2022.11.16"]
[WhiteClock "0:00:09"]
[BlackClock "0:00:19"]

1. d4 {[%clk 0:03:00]}  g6 {[%clk 0:02:54]} 2. c4 {[%clk 0:03:00]}  Bg7 {[%clk 0:02:54]} 3. Nc3 {[%clk 0:03:00]}  d6 {[%clk 0:02:55]} 4. e4 {[%clk 0:03:01]}  e5 {[%clk 0:02:56]} 5. dxe5 {[%clk 0:02:58]}  dxe5 {[%clk 0:02:56]} 6. Qxd8+ {[%clk 0:02:59]}  Kxd8 {[%clk 0:02:57]} 7. f4 {[%clk 0:02:59]}  Nd7 {[%clk 0:02:54]} 8. Nf3 {[%clk 0:02:59]}  c6 {[%clk 0:02:51]} 9. fxe5 {[%clk 0:02:52]}  Nxe5 {[%clk 0:02:49]} 10. Bg5+ {[%clk 0:02:53]}  Kc7 {[%clk 0:02:32]} 11. O-O-O {[%clk 0:02:40]}  Be6 {[%clk 0:02:31]} 12. Bf4 {[%clk 0:02:36]}  f6 {[%clk 0:02:27]} 13. Bxe5+ {[%clk 0:02:35]}  fxe5 {[%clk 0:02:27]} 14. Ng5 {[%clk 0:02:35]}  Re8 {[%clk 0:02:24]} 15. Nxe6+ {[%clk 0:02:30]}  Rxe6 {[%clk 0:02:23]} 16. g3 {[%clk 0:02:24]}  Nf6 {[%clk 0:02:08]} 17. Bh3 {[%clk 0:02:23]}  Rd6 {[%clk 0:02:08]} 18. Rxd6 {[%clk 0:02:16]}  Kxd6 {[%clk 0:02:09]} 19. Rd1+ {[%clk 0:02:14]}  Ke7 {[%clk 0:01:57]} 20. c5 {[%clk 0:02:14]}  Rd8 {[%clk 0:01:53]} 21. b4 {[%clk 0:02:06]}  Rd4 {[%clk 0:01:50]} 22. a3 {[%clk 0:01:53]}  h5 {[%clk 0:01:30]} 23. Bc8 {[%clk 0:01:47]}  b6 {[%clk 0:01:30]} 24. Bb7 {[%clk 0:01:12]}  Kd7 {[%clk 0:01:24]} 25. b5 {[%clk 0:01:06]}  Kc7 {[%clk 0:00:53]} 26. bxc6 {[%clk 0:01:00]}  Rc4 {[%clk 0:00:49]} 27. Kb2 {[%clk 0:00:57]}  Rxc5 {[%clk 0:00:45]} 28. a4 {[%clk 0:00:46]}  a6 {[%clk 0:00:43]} 29. Bxa6 {[%clk 0:00:24]}  Kxc6 {[%clk 0:00:38]} 30. Bb5+ {[%clk 0:00:14]}  Kc7 {[%clk 0:00:35]} 31. Nd5+ {[%clk 0:00:13]}  Nxd5 {[%clk 0:00:35]} 32. Rxd5 {[%clk 0:00:13]}  Rxd5 {[%clk 0:00:33]} 33. exd5 {[%clk 0:00:13]}  Kd6 {[%clk 0:00:32]} 34. Be8 {[%clk 0:00:13]}  g5 {[%clk 0:00:29]} 35. Bxh5 {[%clk 0:00:12]}  Kxd5 {[%clk 0:00:29]} 36. Bg6 {[%clk 0:00:11]}  Kd4 {[%clk 0:00:29]} 37. Kc2 {[%clk 0:00:11]}  Ke3 {[%clk 0:00:29]} 38. h4 {[%clk 0:00:10]}  g4 {[%clk 0:00:27]} 39. h5 {[%clk 0:00:10]}  Kf3 {[%clk 0:00:26]} 40. Kd2 {[%clk 0:00:09]}  Kxg3 {[%clk 0:00:23]} 41. Ke3 {[%clk 0:00:09]}  Kh2 {[%clk 0:00:19]} 42. Be4 {[%clk 0:00:08]}  g3 {[%clk 0:00:18]} 43. Bd5 {[%clk 0:00:08]}  g2 {[%clk 0:00:18]} 44. Bxg2 {[%clk 0:00:08]}  Kxg2 {[%clk 0:00:19]} 45. Ke4 {[%clk 0:00:08]}  Kg3 {[%clk 0:00:17]} 46. h6 {[%clk 0:00:09]}  Bxh6 {[%clk 0:00:17]} 47. Kxe5 {[%clk 0:00:09]}  Bd2 {[%clk 0:00:17]} 48. Kd5 {[%clk 0:00:08]}  Ba5 {[%clk 0:00:18]} 49. Kc6 {[%clk 0:00:09]}  Kf3 {[%clk 0:00:18]} 50. Kb5 {[%clk 0:00:09]}  Ke3 {[%clk 0:00:19]} 51. Kc4 {[%clk 0:00:09]}  Kd2 {[%clk 0:00:19]} 52. Kb3 {[%clk 0:00:09]}  Kd3 {[%clk 0:00:19]} 0-1


[Site "https://www.chess.com"]

[Event "Titled Tuesday Blitz November 15 Early 2022"]
[White "Lehtosaari, Mauri"]
[Black "Leiva, Gianmarco"]
[WhiteFideId "501999"]
[BlackFideId "3804399"]
[WhiteElo "2493"]
[BlackElo "2286"]
[Result "0-1"]
[Round "11"]
[TimeControl "180+1"]
[Date "2022.11.16"]
[WhiteClock "0:00:10"]
[BlackClock "0:01:49"]

1. d4 {[%clk 0:03:00]}  Nf6 {[%clk 0:02:59]} 2. Nf3 {[%clk 0:03:00]}  g6 {[%clk 0:02:59]} 3. Bg5 {[%clk 0:02:59]}  Bg7 {[%clk 0:02:59]} 4. Nbd2 {[%clk 0:02:59]}  O-O {[%clk 0:03:00]} 5. e3 {[%clk 0:03:00]}  b6 {[%clk 0:03:00]} 6. Bc4 {[%clk 0:03:00]}  Bb7 {[%clk 0:03:00]} 7. O-O {[%clk 0:03:00]}  d6 {[%clk 0:03:01]} 8. c3 {[%clk 0:03:00]}  Nbd7 {[%clk 0:03:01]} 9. a4 {[%clk 0:03:00]}  a6 {[%clk 0:03:02]} 10. Ba2 {[%clk 0:03:00]}  Qe8 {[%clk 0:03:02]} 11. Qc2 {[%clk 0:03:00]}  e5 {[%clk 0:03:01]} 12. dxe5 {[%clk 0:02:58]}  dxe5 {[%clk 0:03:00]} 13. Bh4 {[%clk 0:02:44]}  h6 {[%clk 0:02:59]} 14. Qxg6 {[%clk 0:02:29]}  Kh8 {[%clk 0:02:56]} 15. Qc2 {[%clk 0:02:25]}  Nh5 {[%clk 0:02:56]} 16. Rad1 {[%clk 0:02:16]}  f5 {[%clk 0:02:56]} 17. Qb3 {[%clk 0:02:13]}  Nc5 {[%clk 0:02:54]} 18. Qc2 {[%clk 0:02:14]}  Qg6 {[%clk 0:02:55]} 19. b4 {[%clk 0:01:59]}  Ne4 {[%clk 0:02:55]} 20. Ne1 {[%clk 0:01:53]}  Qg4 {[%clk 0:02:26]} 21. Be7 {[%clk 0:01:24]}  Rfe8 {[%clk 0:02:25]} 22. f3 {[%clk 0:01:23]}  Qg6 {[%clk 0:02:16]} 23. Bh4 {[%clk 0:01:17]}  Ng5 {[%clk 0:02:14]} 24. Bb1 {[%clk 0:01:14]}  e4 {[%clk 0:02:05]} 25. f4 {[%clk 0:01:07]}  Nh3+ {[%clk 0:01:50]} 26. Kh1 {[%clk 0:01:06]}  Qg4 {[%clk 0:01:51]} 27. Bf2 {[%clk 0:00:44]}  Nxf2+ {[%clk 0:01:52]} 28. Rxf2 {[%clk 0:00:45]}  Rad8 {[%clk 0:01:50]} 29. Ba2 {[%clk 0:00:43]}  Rd6 {[%clk 0:01:48]} 30. Bf7 {[%clk 0:00:32]}  Red8 {[%clk 0:01:48]} 31. Bxh5 {[%clk 0:00:32]}  Qxh5 {[%clk 0:01:49]} 32. Rf1 {[%clk 0:00:31]}  Qe2 {[%clk 0:01:48]} 33. Kg1 {[%clk 0:00:08]}  Rxd2 {[%clk 0:01:48]} 34. Rxd2 {[%clk 0:00:09]}  Rxd2 {[%clk 0:01:48]} 35. Qxd2 {[%clk 0:00:10]}  Qxd2 {[%clk 0:01:49]} 0-1


[Site "https://www.chess.com"]

[Event "Titled Tuesday Blitz November 15 Early 2022"]
[White "Levitan, Caleb Levi"]
[Black "Dias, Joao Batista"]
[WhiteFideId "14332620"]
[BlackFideId "2108240"]
[WhiteElo "1963"]
[BlackElo "1898"]
[Result "1-0"]
[Round "11"]
[TimeControl "180+1"]
[Date "2022.11.16"]
[WhiteClock "0:01:57"]
[BlackClock "0:02:34"]

1. e4 {[%clk 0:03:00]}  e5 {[%clk 0:02:59]} 2. Nf3 {[%clk 0:03:00]}  Nc6 {[%clk 0:02:59]} 3. Bb5 {[%clk 0:02:59]}  Nd4 {[%clk 0:02:57]} 4. Nxd4 {[%clk 0:02:56]}  exd4 {[%clk 0:02:57]} 5. d3 {[%clk 0:02:56]}  c6 {[%clk 0:02:57]} 6. Bc4 {[%clk 0:02:54]}  Nf6 {[%clk 0:02:56]} 7. O-O {[%clk 0:02:53]}  Be7 {[%clk 0:02:56]} 8. f4 {[%clk 0:02:52]}  d6 {[%clk 0:02:55]} 9. f5 {[%clk 0:02:51]}  O-O {[%clk 0:02:54]} 10. Bg5 {[%clk 0:02:49]}  Nd7 {[%clk 0:02:54]} 11. Bxe7 {[%clk 0:02:43]}  Qxe7 {[%clk 0:02:54]} 12. Nd2 {[%clk 0:02:43]}  Kh8 {[%clk 0:02:54]} 13. Nf3 {[%clk 0:02:35]}  Qf6 {[%clk 0:02:48]} 14. Qe1 {[%clk 0:02:32]}  b5 {[%clk 0:02:47]} 15. Bb3 {[%clk 0:02:31]}  a5 {[%clk 0:02:47]} 16. a4 {[%clk 0:02:29]}  Nc5 {[%clk 0:02:46]} 17. axb5 {[%clk 0:02:24]}  Nxb3 {[%clk 0:02:45]} 18. cxb3 {[%clk 0:02:23]}  cxb5 {[%clk 0:02:45]} 19. Rxa5 {[%clk 0:02:23]}  Rxa5 {[%clk 0:02:43]} 20. Qxa5 {[%clk 0:02:23]}  d5 {[%clk 0:02:43]} 21. e5 {[%clk 0:02:06]}  Qxf5 {[%clk 0:02:42]} 22. Qxb5 {[%clk 0:02:05]}  Be6 {[%clk 0:02:36]} 23. Qc5 {[%clk 0:01:58]}  Qf4 {[%clk 0:02:34]} 24. Qxf8# {[%clk 0:01:57]} 1-0


[Site "https://www.chess.com"]

[Event "Titled Tuesday Blitz November 15 Early 2022"]
[White "Liu, Xiangyi"]
[Black "Calcada, Lucas Galvan"]
[WhiteFideId "8605718"]
[BlackFideId "22746099"]
[WhiteElo "2323"]
[BlackElo "1523"]
[Result "0-1"]
[Round "11"]
[TimeControl "180+1"]
[Date "2022.11.16"]
[WhiteClock "0:00:23"]
[BlackClock "0:00:42"]

1. e4 {[%clk 0:03:00]}  c5 {[%clk 0:02:56]} 2. Nf3 {[%clk 0:03:00]}  d6 {[%clk 0:02:54]} 3. g3 {[%clk 0:03:01]}  g6 {[%clk 0:02:52]} 4. Bg2 {[%clk 0:03:01]}  Bg7 {[%clk 0:02:53]} 5. O-O {[%clk 0:03:01]}  Nf6 {[%clk 0:02:52]} 6. c3 {[%clk 0:03:02]}  O-O {[%clk 0:02:51]} 7. Re1 {[%clk 0:03:02]}  e5 {[%clk 0:02:49]} 8. d4 {[%clk 0:03:01]}  Qc7 {[%clk 0:02:49]} 9. dxe5 {[%clk 0:02:58]}  dxe5 {[%clk 0:02:49]} 10. Bg5 {[%clk 0:02:59]}  h6 {[%clk 0:02:46]} 11. Bxf6 {[%clk 0:02:59]}  Bxf6 {[%clk 0:02:47]} 12. Na3 {[%clk 0:02:55]}  Be6 {[%clk 0:02:43]} 13. Qe2 {[%clk 0:02:55]}  a6 {[%clk 0:02:41]} 14. Nc4 {[%clk 0:02:55]}  Nc6 {[%clk 0:02:31]} 15. Ne3 {[%clk 0:02:54]}  Ne7 {[%clk 0:02:29]} 16. c4 {[%clk 0:02:40]}  Nc6 {[%clk 0:02:24]} 17. Nd5 {[%clk 0:02:37]}  Bxd5 {[%clk 0:02:24]} 18. exd5 {[%clk 0:02:38]}  Nd4 {[%clk 0:02:24]} 19. Qd2 {[%clk 0:02:27]}  Bg7 {[%clk 0:02:17]} 20. Re3 {[%clk 0:02:17]}  f5 {[%clk 0:02:14]} 21. Rae1 {[%clk 0:02:14]}  e4 {[%clk 0:02:13]} 22. Nxd4 {[%clk 0:02:09]}  cxd4 {[%clk 0:02:14]} 23. Rb3 {[%clk 0:02:08]}  Qxc4 {[%clk 0:02:08]} 24. d6 {[%clk 0:02:07]}  b5 {[%clk 0:02:05]} 25. Rb4 {[%clk 0:01:04]}  Qc5 {[%clk 0:02:01]} 26. d7 {[%clk 0:01:02]}  Rad8 {[%clk 0:01:56]} 27. Rc1 {[%clk 0:01:00]}  Qd6 {[%clk 0:01:57]} 28. a4 {[%clk 0:01:00]}  bxa4 {[%clk 0:01:23]} 29. Rbc4 {[%clk 0:01:00]}  Qxd7 {[%clk 0:01:22]} 30. Rc6 {[%clk 0:01:00]}  Rc8 {[%clk 0:01:06]} 31. Rxg6 {[%clk 0:00:57]}  Rxc1+ {[%clk 0:00:56]} 32. Qxc1 {[%clk 0:00:57]}  d3 {[%clk 0:00:55]} 33. Bf1 {[%clk 0:00:50]}  Rc8 {[%clk 0:00:51]} 34. Qd2 {[%clk 0:00:30]}  Kh7 {[%clk 0:00:45]} 35. Rxa6 {[%clk 0:00:22]}  Rc2 {[%clk 0:00:44]} 36. Qd1 {[%clk 0:00:23]}  Qd4 {[%clk 0:00:42]} 0-1


[Site "https://www.chess.com"]

[Event "Titled Tuesday Blitz November 15 Early 2022"]
[White "Makhmudov, Shukhrat"]
[Black "Valle Maytin, Luis Enrique"]
[WhiteFideId "14200775"]
[BlackFideId "3503666"]
[WhiteElo "2135"]
[BlackElo "2225"]
[Result "0-1"]
[Round "11"]
[TimeControl "180+1"]
[Date "2022.11.16"]
[WhiteClock "0:00:15"]
[BlackClock "0:01:06"]

1. e4 {[%clk 0:02:59]}  c6 {[%clk 0:02:50]} 2. Nc3 {[%clk 0:02:58]}  d5 {[%clk 0:02:51]} 3. d4 {[%clk 0:02:57]}  dxe4 {[%clk 0:02:50]} 4. Nxe4 {[%clk 0:02:58]}  Nf6 {[%clk 0:02:51]} 5. Nxf6+ {[%clk 0:02:59]}  exf6 {[%clk 0:02:52]} 6. c3 {[%clk 0:02:59]}  Bd6 {[%clk 0:02:52]} 7. Bd3 {[%clk 0:03:00]}  O-O {[%clk 0:02:53]} 8. Qc2 {[%clk 0:03:00]}  Re8+ {[%clk 0:02:54]} 9. Ne2 {[%clk 0:03:01]}  h5 {[%clk 0:02:54]} 10. O-O {[%clk 0:02:59]}  h4 {[%clk 0:02:54]} 11. h3 {[%clk 0:03:00]}  Nd7 {[%clk 0:02:53]} 12. Bf4 {[%clk 0:02:59]}  Nf8 {[%clk 0:02:53]} 13. Bxd6 {[%clk 0:02:56]}  Qxd6 {[%clk 0:02:53]} 14. Rae1 {[%clk 0:02:55]}  Be6 {[%clk 0:02:52]} 15. b3 {[%clk 0:02:55]}  Rad8 {[%clk 0:02:47]} 16. Rd1 {[%clk 0:02:54]}  b5 {[%clk 0:02:35]} 17. c4 {[%clk 0:02:43]}  a6 {[%clk 0:02:35]} 18. Nc3 {[%clk 0:02:37]}  Qc7 {[%clk 0:02:17]} 19. d5 {[%clk 0:02:15]}  cxd5 {[%clk 0:02:16]} 20. cxd5 {[%clk 0:02:15]}  Bc8 {[%clk 0:02:05]} 21. b4 {[%clk 0:01:34]}  Qf4 {[%clk 0:01:52]} 22. a3 {[%clk 0:01:30]}  Qg5 {[%clk 0:01:47]} 23. d6 {[%clk 0:01:25]}  Bxh3 {[%clk 0:01:43]} 24. f4 {[%clk 0:01:18]}  Qg4 {[%clk 0:01:33]} 25. Rf3 {[%clk 0:01:11]}  Rc8 {[%clk 0:01:23]} 26. Rd2 {[%clk 0:00:20]}  Bxg2 {[%clk 0:01:18]} 27. Rxg2 {[%clk 0:00:19]}  Qxf3 {[%clk 0:01:18]} 28. d7 {[%clk 0:00:15]}  Re1+ {[%clk 0:01:07]} 29. Kh2 {[%clk 0:00:15]}  Qxf4+ {[%clk 0:01:07]} 30. Kh3 {[%clk 0:00:15]}  Rh1+ {[%clk 0:01:07]} 31. Rh2 {[%clk 0:00:15]}  Qg3# {[%clk 0:01:06]} 0-1


[Site "https://www.chess.com"]

[Event "Titled Tuesday Blitz November 15 Early 2022"]
[White "Manelyuk, Daniil"]
[Black "Piesik, Piotr"]
[WhiteFideId "44173920"]
[BlackFideId "1136194"]
[WhiteElo "2209"]
[BlackElo "2316"]
[Result "0-1"]
[Round "11"]
[TimeControl "180+1"]
[Date "2022.11.16"]
[WhiteClock "0:00:15"]
[BlackClock "0:00:16"]

1. e4 {[%clk 0:03:00]}  g6 {[%clk 0:02:59]} 2. d4 {[%clk 0:02:57]}  Bg7 {[%clk 0:03:00]} 3. Nf3 {[%clk 0:02:54]}  c6 {[%clk 0:03:00]} 4. Nc3 {[%clk 0:02:54]}  d6 {[%clk 0:03:01]} 5. Be3 {[%clk 0:02:55]}  Nf6 {[%clk 0:03:01]} 6. Qd2 {[%clk 0:02:54]}  O-O {[%clk 0:03:01]} 7. h4 {[%clk 0:02:54]}  h5 {[%clk 0:02:59]} 8. Bh6 {[%clk 0:02:52]}  b5 {[%clk 0:02:58]} 9. Bd3 {[%clk 0:02:50]}  Bg4 {[%clk 0:02:53]} 10. O-O-O {[%clk 0:02:46]}  Qa5 {[%clk 0:02:50]} 11. Kb1 {[%clk 0:02:45]}  b4 {[%clk 0:02:49]} 12. Ne2 {[%clk 0:02:44]}  e5 {[%clk 0:02:47]} 13. dxe5 {[%clk 0:02:41]}  dxe5 {[%clk 0:02:47]} 14. Bxg7 {[%clk 0:02:31]}  Kxg7 {[%clk 0:02:47]} 15. Qg5 {[%clk 0:02:32]}  Nbd7 {[%clk 0:02:41]} 16. Ng3 {[%clk 0:02:27]}  Rfe8 {[%clk 0:02:31]} 17. Bc4 {[%clk 0:02:14]}  Nb6 {[%clk 0:02:16]} 18. Bb3 {[%clk 0:01:59]}  Qc5 {[%clk 0:02:06]} 19. Nf5+ {[%clk 0:01:46]}  Bxf5 {[%clk 0:02:05]} 20. exf5 {[%clk 0:01:46]}  Ne4 {[%clk 0:01:44]} 21. Qc1 {[%clk 0:01:08]}  Nxf2 {[%clk 0:01:25]} 22. Rdf1 {[%clk 0:00:45]}  e4 {[%clk 0:01:16]} 23. f6+ {[%clk 0:00:25]}  Kxf6 {[%clk 0:01:11]} 24. Ng5 {[%clk 0:00:16]}  e3 {[%clk 0:01:03]} 25. Bxf7 {[%clk 0:00:16]}  Re5 {[%clk 0:00:52]} 26. Bb3 {[%clk 0:00:14]}  Kg7 {[%clk 0:00:43]} 27. Rhg1 {[%clk 0:00:07]}  Rae8 {[%clk 0:00:38]} 28. Re1 {[%clk 0:00:05]}  Nc4 {[%clk 0:00:36]} 29. Nf3 {[%clk 0:00:05]}  R5e7 {[%clk 0:00:32]} 30. Re2 {[%clk 0:00:05]}  a5 {[%clk 0:00:30]} 31. Rge1 {[%clk 0:00:05]}  Nb6 {[%clk 0:00:16]} 32. Ng5 {[%clk 0:00:02]}  a4 {[%clk 0:00:15]} 33. Bf7 {[%clk 0:00:01]}  Rxf7 {[%clk 0:00:15]} 34. Nxf7 {[%clk 0:00:02]}  Kxf7 {[%clk 0:00:16]} 35. Rxe3 {[%clk 0:00:02]}  Rxe3 {[%clk 0:00:16]} 36. Rxe3 {[%clk 0:00:03]}  Ng4 {[%clk 0:00:16]} 37. Rf3+ {[%clk 0:00:03]}  Kg7 {[%clk 0:00:16]} 38. Qd2 {[%clk 0:00:03]}  Nd5 {[%clk 0:00:15]} 39. Qe1 {[%clk 0:00:02]}  Qd4 {[%clk 0:00:14]} 40. Rd3 {[%clk 0:00:02]}  Qf6 {[%clk 0:00:14]} 41. Rf3 {[%clk 0:00:02]}  Qe5 {[%clk 0:00:14]} 42. Qxe5+ {[%clk 0:00:02]}  Nxe5 {[%clk 0:00:15]} 43. Rf1 {[%clk 0:00:02]}  Ng4 {[%clk 0:00:13]} 44. g3 {[%clk 0:00:02]}  Nge3 {[%clk 0:00:13]} 45. Rf3 {[%clk 0:00:02]}  a3 {[%clk 0:00:13]} 46. bxa3 {[%clk 0:00:02]}  bxa3 {[%clk 0:00:14]} 47. Kc1 {[%clk 0:00:03]}  Nf5 {[%clk 0:00:13]} 48. Rxa3 {[%clk 0:00:02]}  Kf6 {[%clk 0:00:13]} 49. Rf3 {[%clk 0:00:02]}  Ke5 {[%clk 0:00:13]} 50. a4 {[%clk 0:00:02]}  Nd4 {[%clk 0:00:13]} 51. Rd3 {[%clk 0:00:02]}  Ne6 {[%clk 0:00:12]} 52. a5 {[%clk 0:00:02]}  Nc5 {[%clk 0:00:12]} 53. Re3+ {[%clk 0:00:02]}  Nxe3 {[%clk 0:00:12]} 54. Kd2 {[%clk 0:00:03]}  Nc4+ {[%clk 0:00:11]} 55. Kc3 {[%clk 0:00:03]}  Nxa5 {[%clk 0:00:12]} 56. Kb4 {[%clk 0:00:04]}  Nab7 {[%clk 0:00:13]} 57. Kc3 {[%clk 0:00:04]}  Kd5 {[%clk 0:00:13]} 58. Kd2 {[%clk 0:00:04]}  Kc4 {[%clk 0:00:14]} 59. g4 {[%clk 0:00:05]}  hxg4 {[%clk 0:00:14]} 60. Ke2 {[%clk 0:00:05]}  Ne6 {[%clk 0:00:14]} 61. Kf2 {[%clk 0:00:06]}  Nd6 {[%clk 0:00:14]} 62. Kg3 {[%clk 0:00:07]}  Kc3 {[%clk 0:00:13]} 63. Kxg4 {[%clk 0:00:08]}  Kxc2 {[%clk 0:00:13]} 64. h5 {[%clk 0:00:08]}  gxh5+ {[%clk 0:00:14]} 65. Kxh5 {[%clk 0:00:09]}  c5 {[%clk 0:00:15]} 66. Kg4 {[%clk 0:00:10]}  c4 {[%clk 0:00:16]} 67. Kf3 {[%clk 0:00:11]}  c3 {[%clk 0:00:17]} 68. Ke3 {[%clk 0:00:12]}  Kb2 {[%clk 0:00:17]} 69. Ke2 {[%clk 0:00:12]}  c2 {[%clk 0:00:17]} 70. Kd2 {[%clk 0:00:13]}  c1=Q+ {[%clk 0:00:17]} 71. Ke2 {[%clk 0:00:13]}  Qc4+ {[%clk 0:00:17]} 72. Kf2 {[%clk 0:00:13]}  Qf4+ {[%clk 0:00:17]} 73. Ke1 {[%clk 0:00:13]}  Qh2 {[%clk 0:00:16]} 74. Kd1 {[%clk 0:00:14]}  Nf4 {[%clk 0:00:16]} 75. Ke1 {[%clk 0:00:15]}  Qe2# {[%clk 0:00:16]} 0-1


[Site "https://www.chess.com"]

[Event "Titled Tuesday Blitz November 15 Early 2022"]
[White "Manukyan, Sargis A."]
[Black "Csonka, Balazs"]
[WhiteFideId "13303970"]
[BlackFideId "742910"]
[WhiteElo "2187"]
[BlackElo "2404"]
[Result "0-1"]
[Round "11"]
[TimeControl "180+1"]
[Date "2022.11.16"]
[WhiteClock "0:00:13"]
[BlackClock "0:00:04"]

1. d4 {[%clk 0:03:00]}  Nf6 {[%clk 0:02:59]} 2. c4 {[%clk 0:03:00]}  g6 {[%clk 0:02:59]} 3. Nc3 {[%clk 0:03:01]}  Bg7 {[%clk 0:02:59]} 4. e4 {[%clk 0:03:01]}  O-O {[%clk 0:02:59]} 5. Nf3 {[%clk 0:03:02]}  d6 {[%clk 0:02:58]} 6. Be2 {[%clk 0:03:03]}  e5 {[%clk 0:02:57]} 7. O-O {[%clk 0:03:03]}  Nc6 {[%clk 0:02:57]} 8. d5 {[%clk 0:03:04]}  Ne7 {[%clk 0:02:57]} 9. Ne1 {[%clk 0:03:05]}  Nd7 {[%clk 0:02:56]} 10. Nd3 {[%clk 0:03:05]}  f5 {[%clk 0:02:55]} 11. Bd2 {[%clk 0:03:06]}  Nf6 {[%clk 0:02:54]} 12. f3 {[%clk 0:03:06]}  f4 {[%clk 0:02:54]} 13. c5 {[%clk 0:03:07]}  g5 {[%clk 0:02:54]} 14. cxd6 {[%clk 0:03:08]}  cxd6 {[%clk 0:02:53]} 15. Nf2 {[%clk 0:03:08]}  Rf7 {[%clk 0:02:50]} 16. Qc2 {[%clk 0:03:08]}  Bf8 {[%clk 0:02:43]} 17. Rfc1 {[%clk 0:03:08]}  a6 {[%clk 0:02:26]} 18. a4 {[%clk 0:03:08]}  Rg7 {[%clk 0:02:23]} 19. h3 {[%clk 0:03:06]}  h5 {[%clk 0:02:21]} 20. Qd1 {[%clk 0:03:05]}  g4 {[%clk 0:01:33]} 21. fxg4 {[%clk 0:03:02]}  hxg4 {[%clk 0:01:33]} 22. hxg4 {[%clk 0:03:02]}  Ng6 {[%clk 0:01:32]} 23. a5 {[%clk 0:03:02]}  Nh4 {[%clk 0:00:56]} 24. Na4 {[%clk 0:03:02]}  Nxg2 {[%clk 0:00:42]} 25. Rxc8 {[%clk 0:02:48]}  Rxc8 {[%clk 0:00:43]} 26. Kxg2 {[%clk 0:02:48]}  Nh5 {[%clk 0:00:38]} 27. Ra3 {[%clk 0:01:59]}  Ng3 {[%clk 0:00:35]} 28. Nb6 {[%clk 0:01:32]}  Rcc7 {[%clk 0:00:26]} 29. Nh1 {[%clk 0:01:12]}  Nxe4 {[%clk 0:00:22]} 30. Rh3 {[%clk 0:01:06]}  Ng5 {[%clk 0:00:20]} 31. Rh5 {[%clk 0:01:04]}  Rcf7 {[%clk 0:00:18]} 32. Rxg5 {[%clk 0:00:50]}  Rxg5 {[%clk 0:00:19]} 33. Nf2 {[%clk 0:00:49]}  Rh7 {[%clk 0:00:17]} 34. Qc2 {[%clk 0:00:45]}  Rgg7 {[%clk 0:00:14]} 35. Qf5 {[%clk 0:00:37]}  Qh4 {[%clk 0:00:12]} 36. Qe6+ {[%clk 0:00:13]}  Rf7 {[%clk 0:00:12]} 37. Qg6+ {[%clk 0:00:12]}  Rhg7 {[%clk 0:00:11]} 38. Qe4 {[%clk 0:00:12]}  Qg3+ {[%clk 0:00:09]} 39. Kf1 {[%clk 0:00:12]}  f3 {[%clk 0:00:09]} 40. Bd3 {[%clk 0:00:11]}  Qg2+ {[%clk 0:00:09]} 41. Ke1 {[%clk 0:00:12]}  Qg1+ {[%clk 0:00:05]} 42. Bf1 {[%clk 0:00:12]}  Rh7 {[%clk 0:00:04]} 43. Nc4 {[%clk 0:00:12]}  Rh2 {[%clk 0:00:03]} 44. Ne3 {[%clk 0:00:13]}  Qxf2+ {[%clk 0:00:03]} 45. Kd1 {[%clk 0:00:13]}  Qxd2# {[%clk 0:00:04]} 0-1


[Site "https://www.chess.com"]